fUST/lending_fUST_20250725
["ID","MTS","AMOUNT","RATE_DAILY","PERIOD"]
[374655539,1753402246951,-534.38195708,0.00018923,2]
[374655540,1753402246962,-460.0,0.00018923,2]
[374655541,1753402246980,-460.0,0.00018923,2]
[374655542,1753402246989,-460.0,0.00018923,2]
[374655543,1753402246999,-460.0,0.00018923,2]
[374655544,1753402247010,-460.0,0.00018923,2]
[374655545,1753402247019,-460.0,0.00018923,2]
[374655546,1753402247029,-460.0,0.00018923,2]
[374655547,1753402247039,-460.0,0.00018923,2]
[374655548,1753402247048,-460.0,0.00018923,2]
[374655549,1753402247058,-460.0,0.00018923,2]
[374655550,1753402247068,-460.0,0.00018923,2]
[374655551,1753402247078,-460.0,0.00018923,2]
[374655552,1753402247089,-460.0,0.00018923,2]
[374655553,1753402247099,-460.0,0.00018923,2]
[374655554,1753402247108,-460.0,0.00018923,2]
[374655555,1753402247117,-460.0,0.00018923,2]
[374655556,1753402247127,-646.13,0.00018923,2]
[374655557,1753402247137,-1007.13,0.00018923,2]
[374655558,1753402247146,-460.0,0.00018923,2]
[374655559,1753402247155,-460.0,0.00018923,2]
[374655560,1753402247164,-460.0,0.00018923,2]
[374655561,1753402247174,-460.0,0.00018923,2]
[374655562,1753402247184,-460.0,0.00018923,2]
[374655563,1753402247193,-460.0,0.00018923,2]
[374655564,1753402247206,-460.0,0.00018923,2]
[374655565,1753402247215,-460.0,0.00018926,2]
[374655566,1753402247225,-460.0,0.00018926,2]
[374655567,1753402247235,-460.0,0.00018926,2]
[374655568,1753402247244,-460.92,0.00018926,2]
[374655569,1753402247253,-460.0,0.00018977,2]
[374655570,1753402247263,-735.11,0.00018977,2]
[374655571,1753402247272,-460.0,0.00018977,2]
[374655572,1753402247282,-460.0,0.00018977,2]
[374655573,1753402247292,-460.0,0.00018977,2]
[374655574,1753402247302,-1926.9,0.00018977,2]
[374655575,1753402247312,-460.0,0.00018977,2]
[374655576,1753402247322,-736.49,0.0001898,2]
[374655577,1753402247332,-460.0,0.0001898,2]
[374655578,1753402247341,-460.0,0.0001898,2]
[374655579,1753402247351,-460.0,0.0001898,2]
[374655580,1753402247360,-460.0,0.00018986,2]
[374655581,1753402247371,-460.0,0.00018986,2]
[374655582,1753402247380,-460.0,0.00018986,2]
[374655583,1753402247390,-528.67,0.00018986,2]
[374655584,1753402247399,-3725.83,0.00018986,2]
[374655585,1753402247408,-7494.55,0.00018986,2]
[374655586,1753402247418,-733.51,0.00018986,2]
[374655587,1753402247427,-460.0,0.00018986,2]
[374655588,1753402247438,-987.99,0.00018986,2]
[374655589,1753402247451,-460.0,0.00018986,2]
[374655590,1753402247462,-460.0,0.00018986,2]
[374655591,1753402247473,-432.36506327,0.00018986,2]
[374655592,1753402247484,-843.37,0.00018986,2]
[374655593,1753402247494,-3605.57,0.00018986,2]
[374655594,1753402247504,-3132.91,0.00018986,2]
[374655595,1753402247514,-881.01,0.00018986,2]
[374655596,1753402247524,-460.0,0.00018986,2]
[374655597,1753402247534,-2584.38,0.00018986,2]
[374655598,1753402247544,-1036.98,0.00018986,2]
[374655599,1753402247554,-460.0,0.00018988,2]
[374655600,1753402247563,-506.67675833,0.00018988,2]
[374655601,1753402247573,-460.0,0.00018988,2]
[374655602,1753402247582,-912.32,0.00018988,2]
[374655603,1753402247591,-1351.51,0.00018988,2]
[374655604,1753402247601,-460.0,0.00018988,2]
[374655605,1753402247611,-460.0,0.00018988,2]
[374655606,1753402247621,-460.0,0.00018988,2]
[374655607,1753402247632,-460.0,0.00018988,2]
[374655608,1753402247642,-958.48,0.00018988,2]
[374655609,1753402247652,-934.3,0.00018988,2]
[374655610,1753402247661,-1347.9,0.00018988,2]
[374655611,1753402247671,-460.0,0.00018989,2]
[374655612,1753402247681,-460.0,0.00018989,2]
[374655613,1753402247692,-460.0,0.00018989,2]
[374655614,1753402247704,-460.0,0.00018989,2]
[374655615,1753402247713,-515.82,0.00018989,2]
[374655616,1753402247723,-515.82,0.00018989,2]
[374655617,1753402247733,-460.0,0.00018989,2]
[374655618,1753402247743,-460.0,0.00018989,2]
[374655619,1753402247752,-162.40448595,0.00018989,2]
[374655620,1753402247761,-460.0,0.00018989,2]
[374655621,1753402247770,-460.0,0.00018989,2]
[374655622,1753402247780,-460.0,0.00018989,2]
[374655623,1753402247790,-269.04292403,0.00018989,2]
[374655624,1753402247799,-723.02,0.00018989,2]
[374655625,1753402247810,-541.85,0.00018989,2]
[374655626,1753402247819,-460.0,0.00018989,2]
[374655627,1753402247829,-460.0,0.00018989,2]
[374655628,1753402247839,-460.0,0.00018989,2]
[374655629,1753402247848,-460.0,0.00018989,2]
[374655630,1753402247857,-460.0,0.00018989,2]
[374655631,1753402247867,-460.0,0.00018989,2]
[374655632,1753402247876,-863.37,0.00018989,2]
[374655633,1753402247887,-568.26,0.00018989,2]
[374655634,1753402247900,-817.24,0.00018989,2]
[374655635,1753402247910,-460.0,0.00018989,2]
[374655636,1753402247919,-719.13,0.00018989,2]
[374655637,1753402247930,-2438.24,0.00018989,2]
[374655638,1753402247939,-460.0,0.00018989,2]
[374655639,1753402248023,-460.0,0.00018989,2]
[374655640,1753402248033,-688.77,0.00018989,2]
[374655641,1753402248043,-460.0,0.00018989,2]
[374655642,1753402248053,-461.32,0.00018989,2]
[374655643,1753402248063,-460.0,0.00018989,2]
[374655644,1753402248072,-460.0,0.00018989,2]
[374655645,1753402248082,-1150.71,0.00018989,2]
[374655646,1753402248091,-460.0,0.00018989,2]
[374655647,1753402248102,-502.57,0.00018989,2]
[374655648,1753402248112,-742.16,0.00018989,2]
[374655649,1753402248122,-460.0,0.00018989,2]
[374655650,1753402248131,-460.0,0.00018989,2]
[374655651,1753402248141,-460.0,0.00018989,2]
[374655652,1753402248151,-460.0,0.00018989,2]
[374655653,1753402248161,-695.46,0.00018989,2]
[374655654,1753402248171,-660.83,0.00018989,2]
[374655655,1753402248181,-460.0,0.00018989,2]
[374655656,1753402248191,-460.0,0.00018989,2]
[374655657,1753402248202,-151.0,0.00019026,2]
[374655658,1753402248212,-460.0,0.00019065,2]
[374655659,1753402248222,-460.0,0.00019087,2]
[374655660,1753402248231,-460.0,0.00019087,2]
[374655661,1753402248241,-460.0,0.00019087,2]
[374655662,1753402248251,-460.0,0.00019087,2]
[374655663,1753402248261,-645.93,0.00019087,2]
[374655664,1753402248271,-1415.21,0.00019087,2]
[374655665,1753402248280,-1362.34,0.00019087,2]
[374655666,1753402248290,-1067.29,0.00019087,2]
[374655667,1753402248300,-460.0,0.00019087,2]
[374655668,1753402248310,-523.29,0.00019087,2]
[374655669,1753402248320,-460.0,0.00019087,2]
[374655670,1753402248330,-854.5,0.00019087,2]
[374655671,1753402248339,-767.2,0.00019087,2]
[374655672,1753402248349,-544.03,0.00019087,2]
[374655673,1753402248359,-1003.64,0.00019087,2]
[374655674,1753402248368,-1255.1,0.00019087,2]
[374655675,1753402248378,-460.0,0.00019089,2]
[374655676,1753402248387,-460.0,0.00019089,2]
[374655677,1753402248398,-456.76833669,0.00019089,2]
[374655678,1753402248407,-460.0,0.00019089,2]
[374655679,1753402248417,-460.0,0.00019089,2]
[374655680,1753402248427,-460.0,0.00019089,2]
[374655681,1753402248436,-460.0,0.00019089,2]
[374655682,1753402248445,-460.0,0.00019089,2]
[374655683,1753402248455,-616.03,0.00019089,2]
[374655684,1753402248465,-841.29,0.00019089,2]
[374655685,1753402248474,-460.0,0.00019089,2]
[374655686,1753402248485,-460.0,0.00019089,2]
[374655687,1753402248495,-915.5,0.00019089,2]
[374655688,1753402248505,-460.0,0.00019089,2]
[374655689,1753402248514,-460.0,0.00019089,2]
[374655690,1753402248524,-605.29,0.00019089,2]
[374655691,1753402248533,-460.0,0.00019089,2]
[374655692,1753402248543,-463.64204059,0.00019089,2]
[374655693,1753402248553,-632.16,0.00019089,2]
[374655694,1753402248563,-668.74,0.00019089,2]
[374655695,1753402248573,-6012.45,0.00019089,2]
[374655696,1753402248583,-556.55,0.00019089,2]
[374655697,1753402248598,-2517.3,0.00019089,2]
[374655698,1753402248620,-943.23,0.00019089,2]
[374655699,1753402248636,-2462.79,0.00019089,2]
[374655700,1753402248655,-3430.01,0.00019089,2]
[374655701,1753402248675,-2288.37,0.00019089,2]
[374655702,1753402248696,-460.0,0.00019089,2]
[374655703,1753402248718,-460.0,0.00019091,2]
[374655704,1753402248736,-460.0,0.00019091,2]
[374655705,1753402248751,-460.0,0.00019091,2]
[374655706,1753402248766,-460.0,0.00019091,2]
[374655707,1753402248785,-466.13,0.00019091,2]
[374655708,1753402248804,-460.0,0.00019091,2]
[374655709,1753402248823,-817.98,0.00019091,2]
[374655710,1753402248836,-940.2,0.00019091,2]
[374655711,1753402248852,-460.0,0.00019091,2]
[374655712,1753402248870,-675.06,0.00019091,2]
[374655713,1753402248885,-460.0,0.00019091,2]
[374655714,1753402248902,-460.0,0.00019091,2]
[374655715,1753402248915,-777.33,0.00019091,2]
[374655716,1753402248931,-370.88270683,0.00019091,2]
[374655717,1753402248945,-466.04290391,0.00019091,2]
[374655718,1753402248961,-1266.96,0.00019091,2]
[374655719,1753402248976,-467.08440281,0.00019091,2]
[374655720,1753402248990,-3453.17,0.00019091,2]
[374655721,1753402249005,-389.68021653,0.00019091,2]
[374655722,1753402249020,-949.99,0.00019091,2]
[374655723,1753402249033,-460.0,0.00019091,2]
[374655724,1753402249047,-460.0,0.00019091,2]
[374655725,1753402249061,-460.0,0.00019091,2]
[374655726,1753402249076,-460.0,0.00019091,2]
[374655727,1753402249091,-460.0,0.00019091,2]
[374655728,1753402249107,-1174.28,0.00019091,2]
[374655729,1753402249122,-4246.15,0.00019091,2]
[374655730,1753402249137,-585.44,0.00019091,2]
[374655731,1753402249153,-429.26549187,0.00019091,2]
[374655732,1753402249611,-205.82450813,0.00019091,2]
[374655733,1753402249621,-558.02,0.00019091,2]
[374655734,1753402249631,-464.31744254,0.00019091,2]
[374655735,1753402249641,-3250.28,0.00019091,2]
[374655736,1753402249650,-460.0,0.00019091,2]
[374655737,1753402249660,-1243.28,0.00019091,2]
[374655738,1753402249670,-1135.19,0.00019091,2]
[374655739,1753402249679,-730.46,0.00019091,2]
[374655740,1753402249689,-460.0,0.00019093,2]
[374655741,1753402249700,-460.0,0.00019093,2]
[374655742,1753402249711,-464.56271346,0.00019093,2]
[374655743,1753402249722,-535.72970882,0.00019093,2]
[374655744,1753402249731,-460.0,0.00019093,2]
[374655745,1753402249742,-460.0,0.00019093,2]
[374655746,1753402249751,-509.35,0.00019093,2]
[374655747,1753402249761,-460.0,0.00019093,2]
[374655748,1753402249771,-460.0,0.00019093,2]
[374655749,1753402249781,-460.0,0.00019093,2]
[374655750,1753402249790,-772.09,0.00019093,2]
[374655751,1753402249800,-460.0,0.00019093,2]
[374655752,1753402249809,-719.53,0.00019093,2]
[374655753,1753402249819,-460.0,0.00019093,2]
[374655754,1753402249828,-800.45,0.00019093,2]
[374655755,1753402249838,-460.0,0.00019093,2]
[374655756,1753402249847,-468.93142773,0.00019095,2]
[374655757,1753402249857,-460.0,0.00019095,2]
[374655758,1753402249867,-1738.96,0.00019095,2]
[374655759,1753402249876,-609.01,0.00019095,2]
[374655760,1753402249886,-460.0,0.00019095,2]
[374655761,1753402249899,-866.06,0.00019095,2]
[374655762,1753402249908,-460.0,0.00019095,2]
[374655763,1753402249918,-460.0,0.00019095,2]
[374655764,1753402249927,-460.0,0.00019095,2]
[374655765,1753402249939,-460.0,0.00019095,2]
[374655766,1753402249948,-460.0,0.00019095,2]
[374655767,1753402249958,-460.0,0.00019095,2]
[374655768,1753402249969,-1521.6,0.00019095,2]
[374655769,1753402249978,-642.57,0.00019095,2]
[374655770,1753402249988,-460.0,0.00019095,2]
[374655771,1753402249998,-837.07,0.00019095,2]
[374655772,1753402250007,-688.94,0.00019095,2]
[374655773,1753402250017,-468.26,0.00019095,2]
[374655774,1753402250026,-850.71,0.00019095,2]
[374655775,1753402250036,-474.28,0.00019095,2]
[374655776,1753402250045,-460.0,0.00019095,2]
[374655777,1753402250055,-460.0,0.00019095,2]
[374655778,1753402250066,-460.0,0.00019095,2]
[374655779,1753402250075,-151.0,0.000191,2]
[374655780,1753402250084,-1112.9458157,0.00019106,2]
[374655781,1753402250094,-4935.83107738,0.00019107,2]
[374655782,1753402250103,-1000.0,0.00019121,2]
[374655783,1753402250113,-1000.0,0.00019121,2]
[374655784,1753402250123,-1000.0,0.00019121,2]
[374655785,1753402250132,-1000.0,0.00019121,2]
[374655786,1753402250142,-1000.0,0.00019121,2]
[374655787,1753402250153,-185.760665,0.00019178,2]
[374655788,1753402250164,-5000.0,0.00019178,2]
[374655789,1753402250173,-460.0,0.00019197,2]
[374655790,1753402250183,-460.0,0.00019197,2]
[374655791,1753402250193,-460.0,0.00019197,2]
[374655792,1753402250203,-462.43499708,0.00019197,2]
[374655793,1753402250212,-460.0,0.00019197,2]
[374655794,1753402250221,-188.31749689,0.00019197,2]
[374655795,1753402250231,-498.75,0.00019197,2]
[374655796,1753402250241,-460.0,0.00019197,2]
[374655797,1753402250251,-460.0,0.00019197,2]
[374655798,1753402250260,-460.0,0.00019197,2]
[374655799,1753402250269,-460.0,0.00019197,2]
[374655800,1753402250279,-788.8,0.00019197,2]
[374655801,1753402250289,-460.0,0.00019197,2]
[374655802,1753402250299,-460.0,0.00019197,2]
[374655803,1753402250309,-460.0,0.00019197,2]
[374655804,1753402250319,-460.0,0.00019197,2]
[374655805,1753402250329,-460.0,0.00019197,2]
[374655806,1753402250339,-460.0,0.00019197,2]
[374655807,1753402250348,-535.45,0.00019197,2]
[374655808,1753402250358,-460.0,0.00019197,2]
[374655809,1753402250368,-460.0,0.00019197,2]
[374655810,1753402250377,-909.93,0.00019197,2]
[374655811,1753402250386,-460.0,0.00019197,2]
[374655812,1753402250396,-460.0,0.00019197,2]
[374655813,1753402250406,-352.44409855,0.00019197,2]
[374655814,1753402250416,-460.0,0.00019197,2]
[374655815,1753402250425,-460.0,0.00019197,2]
[374655816,1753402250435,-559.10171578,0.00019197,2]
[374655817,1753402250444,-460.0,0.00019197,2]
[374655818,1753402250455,-463.25321709,0.00019197,2]
[374655819,1753402250464,-460.0,0.00019197,2]
[374655820,1753402250474,-460.0,0.00019197,2]
[374655821,1753402250484,-460.0,0.00019197,2]
[374655822,1753402250494,-460.0,0.00019197,2]
[374655823,1753402250503,-460.0,0.00019197,2]
[374655824,1753402250513,-460.0,0.00019197,2]
[374655825,1753402250526,-389.08514156,0.00019197,2]
[374655826,1753402250537,-460.0,0.00019197,2]
[374655827,1753402250547,-460.0,0.00019197,2]
[374655828,1753402250558,-646.13,0.00019197,2]
[374655829,1753402250568,-1007.13,0.00019197,2]
[374655830,1753402250579,-460.0,0.00019197,2]
[374655831,1753402250590,-460.0,0.00019197,2]
[374655832,1753402250600,-460.0,0.00019197,2]
[374655833,1753402250611,-460.0,0.00019197,2]
[374655834,1753402250621,-452.05898746,0.00019197,2]
[374655835,1753402250630,-151.0,0.00019199,2]
[374655836,1753402250640,-524750.8546499,0.000192,2]
[374655837,1753402250649,-460.0,0.000192,2]
[374655838,1753402250659,-460.0,0.000192,2]
[374655839,1753402250668,-460.0,0.000192,2]
[374655840,1753402250678,-460.92,0.000192,2]
[374655841,1753402250687,-151.0,0.000192,2]
[374655842,1753402250697,-151.0,0.000192,2]
[374655843,1753402250708,-408.88635278,0.00019251,2]
[374655844,1753402250718,-735.11,0.00019251,2]
[374655845,1753402250728,-460.0,0.00019251,2]
[374655846,1753402250738,-460.0,0.00019251,2]
[374655847,1753402250748,-1926.9,0.00019251,2]
[374655848,1753402250758,-460.0,0.00019251,2]
[374655849,1753402250767,-736.49,0.00019254,2]
[374655850,1753402250777,-460.0,0.00019254,2]
[374655851,1753402250786,-460.0,0.00019254,2]
[374655852,1753402250796,-460.0,0.0001926,2]
[374655853,1753402250806,-460.0,0.0001926,2]
[374655854,1753402250816,-528.67,0.0001926,2]
[374655855,1753402250825,-3725.83,0.0001926,2]
[374655856,1753402250834,-7494.55,0.0001926,2]
[374655857,1753402250844,-733.51,0.0001926,2]
[374655858,1753402250854,-460.0,0.0001926,2]
[374655859,1753402250863,-987.99,0.0001926,2]
[374655860,1753402250873,-460.0,0.0001926,2]
[374655861,1753402250882,-460.0,0.0001926,2]
[374655862,1753402250895,-843.37,0.0001926,2]
[374655863,1753402250906,-1127.04524835,0.0001926,2]
[374655864,1753402251620,5000.0,0.00018,2]
[374655865,1753402257999,5000.0,0.00018,2]
[374655866,1753402284676,5000.0,0.00018,2]
[374655867,1753402300537,4493.77057207,0.00018,2]
[374655868,1753402300562,506.22942793,0.00018,2]
[374655869,1753402316191,5000.0,0.00018,2]
[374655870,1753402331497,5000.0,0.00018,2]
[374655871,1753402346937,5000.0,0.00018,2]
[374655872,1753402363069,5000.0,0.00018,2]
[374655875,1753402378580,5000.0,0.00018,2]
[374655876,1753402395369,4493.77057207,0.00018,2]
[374655877,1753402395395,506.22942793,0.00018,2]
[374655878,1753402398630,-162.67666482,0.00018142,2]
[374655880,1753402410796,5000.0,0.00018,2]
[374655881,1753402426773,5000.0,0.00018,2]
[374655882,1753402442714,509.13075804,0.00018,2]
[374655891,1753402564325,210.672722,0.00013699,2]
[374655897,1753402781690,-236.05188442,0.00018238,2]
[374655898,1753402784008,-63.94811558,0.00018238,2]
[374655899,1753402784032,-137.94221641,0.00018238,2]
[374655900,1753402796302,-215.04589078,0.00018238,2]
[374655901,1753402798334,-253.07573178,0.00018222,2]
[374655902,1753402800492,-178.34470795,0.00018222,2]
[374655903,1753402802740,-7.78805149,0.00018222,2]
[374655904,1753402802763,-156.71974513,0.00018238,2]
[374655905,1753402805507,-44.28025487,0.00018238,2]
[374655906,1753402805535,-300.0,0.00018238,2]
[374655907,1753402805558,-42.65753389,0.00018238,2]
[374655908,1753402808135,-206.68027152,0.00018238,2]
[374655909,1753402812403,-50.66219459,0.00018238,2]
[374655910,1753402812427,-123.33780541,0.00018238,2]
[374655911,1753402814159,-186.03276155,0.00018238,2]
[374655912,1753402822050,-181.01,0.00018233,3]
[374655913,1753402822075,-130.32516509,0.00018238,2]
[374655914,1753402854531,-151.0,0.00018138,2]
[374655915,1753402857871,-67.10933007,0.00018138,2]
[374655916,1753402857896,-156.03238649,0.00018232,3]
[374655917,1753402860147,-203.99761351,0.00018232,3]
[374655918,1753402860176,-44.15676593,0.00018233,3]
[374655919,1753402862389,-267.18323407,0.00018233,3]
[374655920,1753402862422,-40.55977434,0.00018238,2]
[374655921,1753402864654,-176.71233421,0.00018237,2]
[374655922,1753402866054,-123.28766579,0.00018237,2]
[374655923,1753402866079,-115.12052998,0.00018238,2]
[374655924,1753402868824,-153.42509559,0.00018238,2]
[374655925,1753402872158,-190.89460009,0.00018238,2]
[374655926,1753402872183,-32.82073368,0.00018238,2]
[374655927,1753402877331,-201.82385893,0.00018238,2]
[374655928,1753402880475,-265.35540739,0.00018238,2]
[374655929,1753402880497,-46.41279515,0.00018238,2]
[374655930,1753402883568,-229.51730249,0.00018238,2]
[374655931,1753402886007,-160.05037009,0.00018238,2]
[374655932,1753402887735,-64.01953227,0.00018238,2]
[374655933,1753402887757,-152.73537281,0.00018238,2]
[374655934,1753402890601,-204.34444648,0.00018237,2]
[374655935,1753402892269,-258.13342086,0.00018237,2]
[374655936,1753402897480,-258.02257646,0.00018237,2]
[374655937,1753402903654,-342.33913775,0.00018237,2]
[374655938,1753402905527,-137.16041845,0.00018237,2]
[374655939,1753402905553,-60.48220273,0.00018238,2]
[374655940,1753402909611,-246.62,0.00018231,3]
[374655941,1753402909636,-20.48518362,0.00018237,2]
[374655942,1753402911908,-193.41528649,0.00018237,2]
[374655943,1753402921455,-303.21908336,0.00018231,3]
[374655944,1753402924155,-282.24029138,0.00018231,3]
[374655945,1753402931987,-154.40062526,0.00018231,3]
[374655946,1753402932012,-84.56103271,0.00018237,2]
[374655947,1753402936285,-165.69737655,0.00018237,2]
[374655948,1753402936309,-105.29901603,0.00018237,2]
[374655949,1753402940149,-194.70098397,0.00018237,2]
[374655950,1753402940176,-87.43246596,0.00018238,2]
[374655951,1753402947852,-199.3499585,0.00018238,2]
[374655952,1753402947876,-31.56644912,0.00018238,2]
[374655953,1753402951757,-359.75344919,0.00018238,2]
[374655954,1753402955051,-259.83634292,0.00018238,2]
[374655955,1753402959637,-277.41007168,0.00018237,2]
[374655956,1753402961829,-222.58992832,0.00018237,2]
[374655957,1753402961855,-0.38193755,0.00018237,2]
[374655958,1753402966436,-341.56887835,0.00018237,2]
[374655959,1753402970493,-158.0491841,0.00018237,2]
[374655960,1753402970516,-147.80502579,0.00018237,2]
[374655961,1753402972094,-172.65967755,0.00018237,2]
[374655962,1753402977733,-196.67677459,0.00018237,2]
[374655963,1753402980091,-218.69530626,0.00018237,2]
[374655964,1753402981870,-290.34280605,0.00018237,2]
[374655965,1753402983524,-199.72439548,0.00018236,2]
[374655966,1753402985676,-100.27560452,0.00018236,2]
[374655967,1753402985705,-51.6761551,0.00018237,2]
[374655968,1753402993734,-192.34568573,0.00018231,3]
[374655969,1753402996287,-161.04010148,0.00018231,3]
[374655970,1753403000253,-225.90237023,0.00018231,3]
[374655971,1753403001971,-35.81184256,0.00018231,3]
[374655972,1753403001998,-158.38201068,0.00018237,2]
[374655973,1753403009745,-151.95,0.00018231,3]
[374655974,1753403009769,-125.1002175,0.00018237,2]
[374655975,1753403011340,-151.0,0.00018237,2]
[374655976,1753403014694,-253.45409962,0.00018237,2]
[374655977,1753403017940,-182.13766443,0.00018237,2]
[374655978,1753403021413,-315.53981915,0.00018237,2]
[374655979,1753403023118,-207.42720494,0.00018237,2]
[374655980,1753403027771,-283.90796671,0.00018231,3]
[374655981,1753403029347,-120.54203329,0.00018231,3]
[374655982,1753403029370,-157.30243816,0.00018237,2]
[374655983,1753403031094,-342.19071281,0.00018237,2]
[374655984,1753403032673,-182.3665166,0.00018237,2]
[374655985,1753403036224,-182.14,0.00018231,3]
[374655986,1753403036250,-45.10973141,0.00018237,2]
[374655987,1753403038258,-388.94304139,0.00018237,2]
[374655988,1753403041232,-158.36025649,0.00018237,2]
[374655989,1753403043317,-292.57279506,0.00018236,2]
[374655990,1753403069949,-190.84566382,0.00018137,2]
[374655991,1753403069973,-7.42720494,0.00018236,2]
[374655992,1753403069999,-25.61518426,0.00018237,2]
[374655993,1753403073285,-221.10568074,0.00018237,2]
[374655994,1753403075532,-215.24734396,0.00018237,2]
[374655995,1753403078215,-186.73721899,0.00018237,2]
[374655996,1753403082043,-178.3929195,0.00018237,2]
[374655997,1753403083838,-298.32710348,0.00018237,2]
[374655998,1753403086277,-383.00705925,0.00018237,2]
[374655999,1753403088414,-159.85245639,0.00018236,2]
[374656000,1753403090512,-176.51416252,0.00018236,2]
[374656001,1753403092128,-163.63338109,0.00018236,2]
[374656002,1753403092152,-178.30055575,0.00018236,2]
[374656003,1753403094391,-298.6865238,0.00018236,2]
[374656004,1753403097070,-23.01292045,0.00018236,2]
[374656005,1753403097091,-144.93309815,0.00018236,2]
[374656006,1753403099415,-355.06690185,0.00018236,2]
[374656007,1753403099438,-41.43063362,0.00018236,2]
[374656008,1753403103535,-243.39770188,0.00018235,2]
[374656009,1753403111380,-56.60229812,0.00018235,2]
[374656010,1753403111403,-109.10980316,0.00018235,2]
[374656012,1753403113700,-190.89019684,0.00018235,2]
[374656013,1753403113725,-109.10980316,0.00018235,2]
[374656014,1753403116502,-190.89019684,0.00018235,2]
[374656015,1753403116528,-115.36760451,0.00018235,2]
[374656016,1753403118252,-357.05683684,0.00018235,2]
[374656017,1753403119949,-153.74219865,0.00018235,2]
[374656018,1753403121705,-312.06634779,0.00018235,2]
[374656019,1753403123814,-261.76701221,0.00018235,2]
[374656020,1753403123836,-38.23298779,0.00018235,2]
[374656021,1753403127003,-184.24512919,0.00018235,2]
[374656022,1753403129904,-77.52188302,0.00018235,2]
[374656023,1753403129927,-300.0,0.00018235,2]
[374656024,1753403129950,-322.16326409,0.00018236,2]
[374656025,1753403132707,-143.75040241,0.00018236,2]
[374656026,1753403132730,-99.53592471,0.00018236,2]
[374656027,1753403135734,-343.74349504,0.00018236,2]
[374656028,1753403135758,-77.9754001,0.00018236,2]
[374656029,1753403140010,-300.0,0.00018236,2]
[374656030,1753403142152,-122.0245999,0.00018236,2]
[374656031,1753403142174,-197.94283208,0.00018236,2]
[374656032,1753403144885,-300.0,0.00018236,2]
[374656034,1753403226086,-178.28110486,0.00018136,2]
[374656035,1753403226108,-300.0,0.00018234,2]
[374656036,1753403226128,-228.30009903,0.00018235,2]
[374656037,1753403232088,-271.69990097,0.00018235,2]
[374656038,1753403232112,-500.0,0.00018235,2]
[374656039,1753403232134,-500.0,0.00018235,2]
[374656040,1753403232158,-223.03825557,0.00018235,2]
[374656041,1753403232179,-500.0,0.00018235,2]
[374656042,1753403232203,-500.0,0.00018235,2]
[374656043,1753403232227,-500.0,0.00018235,2]
[374656044,1753403232251,-500.0,0.00018235,2]
[374656045,1753403232271,-236.35233947,0.00018235,2]
[374656046,1753403232295,-116.33808057,0.00018235,2]
[374656047,1753403272769,-204.34444648,0.00018,2]
[374656049,1753403282387,300.0,0.00017999,2]
[374656050,1753403289699,-152.17119309,0.00018,2]
[374656051,1753403293411,-163.27033021,0.00018,2]
[374656052,1753403305120,-165.65999184,0.00018,2]
[374656053,1753403313315,500.0,0.00017999,2]
[374656054,1753403313477,203.87730005,0.00017999,2]
[374656055,1753403313726,500.0,0.00017999,2]
[374656056,1753403314143,500.0,0.00017999,2]
[374656057,1753403314952,1756.01726554,0.00017999,2]